lending/lending_fUSD_20260206
["ID","MTS","AMOUNT","RATE_DAILY","PERIOD"]
[404642145,1770373855843,-500.0,0.00013698,2]
[404642146,1770373855852,-500.0,0.00013698,2]
[404642147,1770373855861,-500.0,0.00013698,2]
[404642148,1770373855870,-500.0,0.00013698,2]
[404642149,1770373855878,-500.0,0.00013698,2]
[404642150,1770373855887,-500.0,0.00013698,2]
[404642151,1770373855896,-500.0,0.00013698,2]
[404642152,1770373855904,-500.0,0.00013698,2]
[404642153,1770373855913,-500.0,0.00013698,2]
[404642154,1770373855922,-500.0,0.00013698,2]
[404642155,1770373855931,-500.0,0.00013698,2]
[404642156,1770373855940,-500.0,0.00013698,2]
[404642157,1770373855948,-500.0,0.00013698,2]
[404642158,1770373855957,-500.0,0.00013698,2]
[404642159,1770373855966,-502.58453595,0.00013698,2]
[404642160,1770373855977,-1119.17,0.00013699,2]
[404642161,1770373855986,-151.0,0.00013699,2]
[404642162,1770373855995,-151.0,0.00013699,2]
[404642163,1770373856005,-151.0,0.00013699,2]
[404642164,1770373856015,-151.0,0.00013699,2]
[404642165,1770373856025,-200.0,0.00013699,2]
[404642166,1770373856035,-151.0,0.00013699,2]
[404642167,1770373856044,-1033.52,0.00013726,2]
[404642168,1770373856054,-3240.0,0.00013795,2]
[404642169,1770373856066,-150.0,0.00013919,2]
[404642170,1770373856075,-1033.52,0.00014,2]
[404642171,1770373856084,-922.9,0.0001402,2]
[404642172,1770373856094,-28308.51651852,0.00014098,2]
[404642173,1770373856103,-1000.0,0.00014102,2]
[404642174,1770373856112,-433.0,0.00014137,2]
[404642175,1770373856122,-1033.52,0.00014274,2]
[404642176,1770373856132,-250.0,0.00014287,2]
[404642177,1770373856141,-2351.0,0.00014375,2]
[404642178,1770373856151,-1119.17,0.00014384,2]
[404642179,1770373856161,-10066.41218288,0.0001439,2]
[404642180,1770373856170,-151.0,0.0001439,2]
[404642181,1770373856180,-151.0,0.0001439,2]
[404642182,1770373856189,-151.0,0.0001439,2]
[404642183,1770373856198,-151.0,0.0001439,2]
[404642184,1770373856207,-162.18,0.0001446,2]
[404642185,1770373856216,-1033.52,0.00014548,2]
[404642186,1770373856225,-151.0,0.00014574,2]
[404642187,1770373856235,-151.0,0.00014574,2]
[404642188,1770373856244,-151.0,0.00014574,2]
[404642189,1770373856254,-151.0,0.00014574,2]
[404642190,1770373856263,-572.069866,0.00014574,2]
[404642191,1770373856274,-151.0,0.00014574,2]
[404642192,1770373856283,-151.0,0.00014574,2]
[404642193,1770373856291,-572.069866,0.00014574,2]
[404642194,1770373856301,-151.0,0.00014574,2]
[404642195,1770373856310,-572.069866,0.00014574,2]
[404642196,1770373856319,-151.0,0.00014574,2]
[404642197,1770373856328,-572.069866,0.00014574,2]
[404642198,1770373856338,-244.383672,0.00014574,2]
[404642199,1770373856347,-244.383672,0.00014574,2]
[404642200,1770373856356,-244.383672,0.00014574,2]
[404642201,1770373856366,-244.383672,0.00014574,2]
[404642202,1770373856375,-151.0,0.00014634,2]
[404642203,1770373856384,-2000.0,0.0001472,2]
[404642204,1770373856393,-2000.0,0.0001472,2]
[404642205,1770373856403,-2000.0,0.0001474,2]
[404642206,1770373856412,-2000.0,0.0001474,2]
[404642207,1770373856421,-2000.0,0.0001474,2]
[404642208,1770373856430,-2000.0,0.0001474,2]
[404642209,1770373856441,-391.501093,0.00014809,7]
[404642210,1770373856450,-1033.52,0.00014822,2]
[404642211,1770373856459,-324.9883317,0.0001499,2]
[404642212,1770373856468,-250.0,0.00015,2]
[404642213,1770373856477,-18421.9352502,0.00015001,2]
[404642214,1770373856487,-5460.5230836,0.00015013,2]
[404642215,1770373856496,-2388.8748452,0.00015018,2]
[404642216,1770373856505,-2388.8748452,0.00015018,2]
[404642217,1770373856515,-9026.7179536,0.00015028,2]
[404642218,1770373856524,-2657.35375652,0.0001503,2]
[404642219,1770373856534,-498.26,0.00015068,2]
[404642220,1770373856543,-1119.17,0.00015068,2]
[404642221,1770373856553,-151.0,0.00015068,2]
[404642222,1770373856562,-151.0,0.00015068,2]
[404642223,1770373856571,-1033.63077805,0.00015096,2]
[404642224,1770373856581,-400.0,0.00015151,2]
[404642225,1770373856590,-162.18,0.0001531,2]
[404642226,1770373856599,-922.9,0.00015421,2]
[404642227,1770373856608,-736.0,0.00015432,2]
[404642228,1770373856618,-4110.4893626,0.00015588,2]
[404642229,1770373856627,-1218.4073901,0.00015604,2]
[404642230,1770373856636,-533.0300267,0.00015611,2]
[404642231,1770373856645,-533.0300268,0.00015611,2]
[404642232,1770373856654,-2014.1330226,0.00015621,2]
[404642233,1770373856664,-1119.17,0.00015753,2]
[404642234,1770373856673,-166.66,0.00015808,2]
[404642235,1770373856683,-3292.0,0.00015812,2]
[404642236,1770373856692,-279.37265388,0.00015864,2]
[404642237,1770373856701,-554.71,0.00015864,2]
[404642238,1770373856710,-500.0,0.00015864,2]
[404642239,1770373856720,-1000.0,0.00015865,2]
[404642240,1770373856729,-337.19070329,0.00016,2]
[404642241,1770373856739,-489.52458422,0.00016,2]
[404642242,1770373856748,-2200.20573113,0.00016073,2]
[404642243,1770373856758,-166.66,0.00016141,2]
[404642244,1770373856767,-162.18,0.00016161,2]
[404642245,1770373856778,-5000.00516031,0.000162,5]
[404642246,1770373856787,-1465.78,0.00016226,2]
[404642247,1770373856797,-28308.51651852,0.00016261,2]
[404642248,1770373856807,-500.0,0.00016381,2]
[404642249,1770373856818,-498.26,0.00016438,2]
[404642250,1770373856828,-1119.17,0.00016438,2]
[404642251,1770373856837,-151.0,0.00016438,2]
[404642252,1770373856847,-151.0,0.00016438,2]
[404642253,1770373856857,-151.0,0.00016438,2]
[404642254,1770373856866,-151.0,0.00016438,2]
[404642255,1770373856876,-151.0,0.00016438,2]
[404642256,1770373856886,-500.0,0.00016473,2]
[404642257,1770373856895,-254.97899767,0.00016473,2]
[404642258,1770373856905,-500.0,0.00016473,2]
[404642259,1770373856915,-474.87876672,0.00016473,2]
[404642260,1770373856926,-166.66,0.00016474,2]
[404642261,1770373856937,-2657.35375652,0.00016605,2]
[404642262,1770373856948,-165.75,0.00016712,2]
[404642263,1770373856958,-166.66,0.00016807,2]
[404642264,1770373856968,-922.9,0.00016823,2]
[404642265,1770373856978,-300.0,0.00017,2]
[404642266,1770373856988,-162.18,0.00017012,2]
[404642267,1770373856997,-167.32974724,0.00017021,2]
[404642268,1770373857008,-1000.6351695,0.00017021,2]
[404642269,1770373857019,-166.66,0.00017139,2]
[404642270,1770373857030,-151.0,0.00017205,2]
[404642271,1770373857039,-151.0,0.00017205,2]
[404642272,1770373857049,-1111.0,0.00017394,2]
[404642273,1770373857062,-1537.0,0.000174,2]
[404642274,1770373857072,-166.66,0.00017472,2]
[404642275,1770373857082,-1000.0,0.00017628,2]
[404642276,1770373857093,-500.0,0.00017808,2]
[404642277,1770373857104,-500.0,0.00017808,2]
[404642278,1770373857114,-500.0,0.00017808,2]
[404642279,1770373857125,-374.48778242,0.00017808,2]
[404642280,1770373857137,-162.18,0.00017862,2]
[404642281,1770373857148,-500.0,0.00017973,2]
[404642282,1770373857158,-151.0,0.00018022,2]
[404642283,1770373857169,-2657.35375652,0.00018179,2]
[404642284,1770373857179,-151.0,0.00018225,2]
[404642285,1770373857191,-151.0,0.00018225,2]
[404642286,1770373857201,-151.0,0.00018225,2]
[404642287,1770373857212,-28308.51651852,0.00018423,2]
[404642288,1770373857221,-1000.0,0.00018521,2]
[404642289,1770373857230,-161.99,0.0001857,2]
[404642290,1770373857241,-151.0,0.000186,2]
[404642291,1770373857250,-151.0,0.000186,2]
[404642292,1770373857260,-151.0,0.000186,2]
[404642293,1770373857270,-282.94996,0.000186,2]
[404642294,1770373857280,-350.0,0.00019,2]
[404642295,1770373857290,-400.86586692,0.00019062,2]
[404642296,1770373857300,-766.80887864,0.00019068,2]
[404642297,1770373857310,-200.0,0.00019082,2]
[404642298,1770373857321,-151.0,0.00019178,2]
[404642299,1770373857331,-151.0,0.00019178,2]
[404642300,1770373857341,-151.0,0.00019178,2]
[404642301,1770373857352,-154.186817,0.00019178,2]
[404642302,1770373857362,-161.99,0.00019183,2]
[404642303,1770373857372,-1000.0,0.0001939,2]
[404642304,1770373857383,-2657.35375652,0.00019753,2]
[404642305,1770373857393,-161.99,0.00019796,2]
[404642306,1770373857404,-2200.20573113,0.00020211,2]
[404642307,1770373857414,-616.0,0.0002031,2]
[404642308,1770373857424,-161.99,0.00020409,2]
[404642309,1770373857434,-28308.51651852,0.00020586,2]
[404642310,1770373857444,-150.0,0.00020973,2]
[404642311,1770373857455,-300.0,0.00020973,2]
[404642312,1770373857464,-19892.06750311,0.00021,2]
[404642313,1770373857474,-151.0,0.00021,2]
[404642314,1770373857483,-400.0,0.00021,2]
[404642315,1770373857493,-2000.0,0.00021,2]
[404642316,1770373857502,-161.99,0.00021022,2]
[404642317,1770373857512,-1000.0,0.00021153,2]
[404642318,1770373857522,-1205.0,0.00021289,2]
[404642319,1770373857532,-3254.0,0.00021289,2]
[404642320,1770373857542,-2446.0,0.00021289,2]
[404642321,1770373857552,-151.0,0.00021289,2]
[404642322,1770373857564,-151.0,0.00021289,2]
[404642323,1770373857575,-269.307488,0.00021289,2]
[404642324,1770373857587,-151.0,0.00021289,2]
[404642325,1770373857598,-572.069866,0.00021289,2]
[404642326,1770373857609,-151.0,0.00021289,2]
[404642327,1770373857620,-151.0,0.00021289,2]
[404642328,1770373857631,-572.069866,0.00021289,2]
[404642329,1770373857642,-151.0,0.00021289,2]
[404642330,1770373857653,-151.0,0.00021289,2]
[404642331,1770373857664,-572.069866,0.00021289,2]
[404642332,1770373857676,-151.0,0.00021289,2]
[404642333,1770373857686,-151.0,0.00021289,2]
[404642334,1770373857697,-572.069866,0.00021289,2]
[404642335,1770373857709,-244.383672,0.00021289,2]
[404642336,1770373857720,-244.383672,0.00021289,2]
[404642337,1770373857730,-244.383672,0.00021289,2]
[404642338,1770373857741,-244.383672,0.00021289,2]
[404642339,1770373857751,-2657.35375652,0.00021327,2]
[404642340,1770373857761,-214.73,0.00021366,2]
[404642341,1770373857771,-300.05530506,0.00021521,2]
[404642342,1770373857782,-600.0,0.00021521,2]
[404642343,1770373857792,-161.99,0.00021635,2]
[404642344,1770373857802,-5000.0,0.00021918,2]
[404642345,1770373857813,-151.0,0.00021918,2]
[404642346,1770373857824,-151.0,0.00021918,2]
[404642347,1770373857835,-151.0,0.00021918,2]
[404642348,1770373857846,-160.0,0.00021918,7]
[404642349,1770373857856,-500.0,0.00021918,2]
[404642350,1770373857866,-500.0,0.00021973,2]
[404642351,1770373857875,-151.0,0.00021981,2]
[404642352,1770373857884,-151.0,0.00021981,2]
[404642353,1770373857894,-300.0,0.00021999,2]
[404642354,1770373857905,-300.0,0.00021999,2]
[404642355,1770373857916,-554.71,0.00021999,2]
[404642356,1770373857927,-300.0,0.00021999,2]
[404642357,1770373857939,-300.0,0.00021999,2]
[404642358,1770373857950,-500.0,0.00021999,2]
[404642359,1770373857961,-66825.19411073,0.00022,4]
[404642360,1770373857972,-200.0,0.00022,5]
[404642361,1770373857984,-1201.02,0.00022,7]
[404642362,1770373857996,-151.0,0.00022,2]
[404642363,1770373858007,-151.0,0.00022,2]
[404642364,1770373858018,-151.0,0.00022,2]
[404642365,1770373858032,-1500.0,0.00022,2]
[404642366,1770373858042,-151.0,0.00022,2]
[404642367,1770373858054,-151.0,0.00022,2]
[404642368,1770373858068,-151.0,0.00022,2]
[404642369,1770373858079,-151.0,0.00022,2]
[404642370,1770373858089,-151.0,0.00022,2]
[404642371,1770373858099,-151.0,0.00022,2]
[404642372,1770373858110,-151.0,0.00022,2]
[404642373,1770373858119,-151.0,0.00022,2]
[404642374,1770373858130,-572.069866,0.00022,2]
[404642375,1770373858141,-151.0,0.00022,2]
[404642376,1770373858150,-151.0,0.00022,2]
[404642377,1770373858159,-572.069866,0.00022,2]
[404642378,1770373858168,-151.0,0.00022,2]
[404642379,1770373858176,-151.0,0.00022,2]
[404642380,1770373858185,-572.069866,0.00022,2]
[404642381,1770373858193,-204.452544,0.00022,2]
[404642382,1770373858201,-202.673492,0.00022,2]
[404642383,1770373858210,-572.069866,0.00022,2]
[404642384,1770373858219,-502.98340974,0.00022028,2]
[404642385,1770373858228,-300.03724242,0.00022068,2]
[404642386,1770373858237,-1103.0,0.0002217,2]
[404642387,1770373858246,-151.0,0.00022226,2]
[404642388,1770373858255,-151.0,0.00022226,2]
[404642389,1770373858263,-9363.80033336,0.000226,2]
[404642390,1770373858273,-2075.92,0.0002274,2]
[404642391,1770373858281,-28308.51651852,0.00022749,2]
[404642392,1770373858290,-2657.35375652,0.00022901,2]
[404642393,1770373858299,-7430.53,0.00022958,2]
[404642394,1770373858308,-200.0,0.00023,5]
[404642395,1770373858317,-160.0,0.00023,2]
[404642396,1770373858326,-450.0,0.00023,2]
[404642397,1770373858338,-616.0,0.0002331,2]
[404642398,1770373858349,-1103.0,0.00023336,2]
[404642399,1770373858359,-269.16,0.00023632,2]
[404642400,1770373858370,-200.0,0.00024,5]
[404642401,1770373858380,-3254.0,0.00024289,2]
[404642402,1770373858391,-2446.0,0.00024289,2]
[404642403,1770373858402,-151.0,0.00024289,2]
[404642404,1770373858413,-151.0,0.00024289,2]
[404642405,1770373858423,-192.555992,0.00024289,2]
[404642406,1770373858435,-300.0,0.00024299,2]
[404642407,1770373858447,-300.0,0.00024299,2]
[404642408,1770373858458,-554.71,0.00024299,2]
[404642409,1770373858469,-500.0,0.00024299,2]
[404642410,1770373858481,-1201.02,0.000243,7]
[404642411,1770373858493,-269.16,0.00024341,2]
[404642412,1770373858504,-2200.20573113,0.00024349,2]
[404642413,1770373858515,-2657.35375652,0.00024476,2]
[404642414,1770373858526,-300.0,0.00024499,2]
[404642415,1770373858537,-313.5829559,0.00024499,2]
[404642416,1770373858549,-1103.0,0.00024565,2]
[404642417,1770373858560,-151.0,0.00024578,2]
[404642418,1770373858572,-151.0,0.00024578,2]
[404642419,1770373858583,-151.0,0.00024578,2]
[404642420,1770373858594,-151.0,0.00024578,2]
[404642421,1770373858605,-572.069866,0.00024578,2]
[404642422,1770373858617,-249.008928,0.00024578,2]
[404642423,1770373858628,-151.0,0.00024578,2]
[404642424,1770373858638,-572.069866,0.00024578,2]
[404642425,1770373858650,-151.0,0.00024578,2]
[404642426,1770373858662,-151.0,0.00024578,2]
[404642427,1770373858673,-572.069866,0.00024578,2]
[404642428,1770373858685,-572.069858,0.00024578,2]
[404642429,1770373858697,-244.383672,0.00024578,2]
[404642430,1770373858709,-244.383672,0.00024578,2]
[404642431,1770373858721,-244.383672,0.00024578,2]
[404642432,1770373858732,-244.383672,0.00024578,2]
[404642433,1770373858744,-190.4,0.00024658,2]
[404642434,1770373858755,-1000.0,0.00024658,2]
[404642435,1770373858766,-195.07369,0.00024737,7]
[404642436,1770373858777,-225.59353,0.00024737,7]
[404642437,1770373858788,-28308.51651852,0.00024912,2]
[404642438,1770373858798,-291.54322598,0.00025,2]
[404642439,1770373858809,-200.0,0.00025,5]
[404642440,1770373858819,-269.16,0.00025071,2]
[404642441,1770373858831,-1103.0,0.00025858,2]
[404642442,1770373858842,-227.52698043,0.00026,5]
[404642443,1770373858854,-2657.35375652,0.0002605,2]
[404642444,1770373858866,-1201.02,0.000263,7]
[404642445,1770373858878,-616.0,0.0002631,2]
[404642446,1770373858891,-400.86586692,0.00026341,2]
[404642447,1770373858903,-300.0,0.00026499,10]
[404642448,1770373858916,-300.0,0.00026499,10]
[404642449,1770373858927,-150.05505375,0.00026705,2]
[404642450,1770373858939,-799.33477218,0.00026918,2]
[404642451,1770373858950,-1700.91096124,0.00026938,2]
[404642452,1770373858961,-300.0,0.00026999,10]
[404642453,1770373858973,-920.488202,0.00027,2]
[404642454,1770373858984,-28308.51651852,0.00027074,2]
[404642455,1770373858995,-1103.0,0.00027219,2]
[404642456,1770373859006,-3251.0,0.00027289,2]
[404642457,1770373859017,-2446.0,0.00027289,2]
[404642458,1770373859030,-554.71,0.00027369,2]
[404642459,1770373859041,-150.0,0.00027369,2]
[404642460,1770373859052,-500.0,0.00027369,2]
[404642461,1770373859067,-760.6,0.0002737,2]
[404642462,1770373859078,-481.2,0.0002737,2]
[404642463,1770373859090,-539.80649824,0.0002737,2]
[404642464,1770373859103,-190.4,0.00027397,2]
[404642465,1770373859115,-862.4,0.00027397,30]
[404642466,1770373859127,-300.0,0.00027397,2]
[404642467,1770373859139,-151.0,0.00027397,7]
[404642468,1770373859149,-158.234228,0.00027397,7]
[404642469,1770373859161,-334.450643,0.00027397,7]
[404642470,1770373859172,-334.450643,0.00027397,7]
[404642471,1770373859183,-334.450643,0.00027397,7]
[404642472,1770373859194,-334.450643,0.00027397,7]
[404642473,1770373859205,-334.450643,0.00027397,7]
[404642474,1770373859216,-334.450643,0.00027397,7]
[404642475,1770373859227,-334.450643,0.00027397,7]
[404642476,1770373859238,-334.450643,0.00027397,7]
[404642477,1770373859249,-334.450643,0.00027397,7]
[404642478,1770373859260,-334.450643,0.00027397,7]
[404642479,1770373859272,-334.450643,0.00027397,7]
[404642480,1770373859283,-334.450643,0.00027397,7]
[404642481,1770373859294,-334.450643,0.00027397,7]
[404642482,1770373859305,-334.450643,0.00027397,7]
[404642483,1770373859317,-334.450643,0.00027397,7]
[404642484,1770373859328,-334.450643,0.00027397,7]
[404642485,1770373859339,-438.608877,0.00027397,7]
[404642486,1770373859351,-438.608877,0.00027397,7]
[404642487,1770373859361,-438.608877,0.00027397,7]
[404642488,1770373859373,-438.608877,0.00027397,7]
[404642489,1770373859534,-438.608877,0.00027397,7]
[404642490,1770373859544,-438.608877,0.00027397,7]
[404642491,1770373859554,-438.608877,0.00027397,7]
[404642492,1770373859564,-438.608877,0.00027397,7]
[404642493,1770373859572,-438.608877,0.00027397,7]
[404642494,1770373859582,-438.608877,0.00027397,7]
[404642495,1770373859592,-438.608877,0.00027397,7]
[404642496,1770373859603,-438.608877,0.00027397,7]
[404642497,1770373859614,-438.608877,0.00027397,7]
[404642498,1770373859626,-438.608877,0.00027397,7]
[404642499,1770373859638,-438.608877,0.00027397,7]
[404642500,1770373859650,-438.608877,0.00027397,7]
[404642501,1770373859661,-438.608877,0.00027397,7]
[404642502,1770373859672,-438.608877,0.00027397,7]
[404642503,1770373859684,-438.608877,0.00027397,7]
[404642504,1770373859695,-438.608885,0.00027397,7]
[404642505,1770373859707,-750.0,0.00027397,20]
[404642506,1770373859718,-1439.26758629,0.00027561,2]
[404642507,1770373859729,-2657.35375652,0.00027624,2]
[404642508,1770373859740,-151.0,0.0002792,7]
[404642509,1770373859753,-151.0,0.0002792,7]
[404642510,1770373859763,-151.0,0.0002792,7]
[404642511,1770373859777,-160.0,0.00028,7]
[404642512,1770373859789,-558.79402767,0.00028,60]
[404642513,1770373859800,-2200.20573113,0.00028486,2]
[404642514,1770373859813,-1103.0,0.00028579,5]
[404642515,1770373859824,-2657.35375652,0.00029198,2]
[404642516,1770373859835,-28308.51651852,0.00029237,2]
[404642517,1770373859847,-152.0,0.00029562,3]
[404642518,1770373859858,-334.450643,0.00029758,7]
[404642519,1770373859871,-334.450643,0.00029758,7]
[404642520,1770373859882,-334.450643,0.00029758,7]
[404642521,1770373859894,-334.450651,0.00029758,7]
[404642522,1770373859906,-300.0,0.00029799,10]
[404642523,1770373859918,-300.0,0.00029799,10]
[404642524,1770373859930,-300.0,0.00029899,10]
[404642525,1770373859942,-300.0,0.00029899,10]
[404642526,1770373859954,-300.0,0.00029899,10]
[404642527,1770373859964,-244.383672,0.00029899,7]
[404642528,1770373859975,-244.383672,0.00029899,7]
[404642529,1770373859986,-244.383672,0.00029899,7]
[404642530,1770373859998,-244.38368,0.00029899,7]
[404642531,1770373860010,-22270.90879205,0.00029899,2]
[404642532,1770373860023,-66145.68309985,0.000299,2]
[404642533,1770373860036,-1201.02,0.000299,7]
[404642534,1770373860047,-237.35445209,0.0002999,2]
[404642535,1770373860058,-300.0,0.00029999,10]
[404642536,1770373860073,-300.0,0.00029999,10]
[404642537,1770373860083,-554.71,0.00029999,2]
[404642538,1770373860094,-300.0,0.00029999,10]
[404642539,1770373860106,-500.0,0.00029999,30]
[404642540,1770373860117,-116792.6218698,0.0003,5]
[404642541,1770373860128,-10000.0,0.0003,10]
[404642542,1770373860140,-802.94240694,0.0003,7]
[404642543,1770373860151,-19879.64163444,0.0003,2]
[404642544,1770373860162,-1818.61750585,0.0003,2]
[404642545,1770373860173,-163.12689957,0.0003,2]
[404642546,1770373860184,-160.0,0.0003,10]
[404642547,1770373860195,-151.0,0.0003,7]
[404642548,1770373860206,-151.0,0.0003,7]
[404642549,1770373860217,-151.0,0.0003,7]
[404642550,1770373860228,-1103.0,0.00030008,5]
[404642551,1770373860240,-190.4,0.00030137,2]
[404642552,1770373860251,-234.110032,0.00030137,31]
[404642553,1770373860262,-234.110032,0.00030137,31]
[404642554,1770373860272,-234.110032,0.00030137,31]
[404642555,1770373860283,-234.110032,0.00030137,31]
[404642556,1770373860293,-234.110032,0.00030137,31]
[404642557,1770373860304,-234.110032,0.00030137,31]
[404642558,1770373860315,-234.110032,0.00030137,31]
[404642559,1770373860325,-234.110032,0.00030137,31]
[404642560,1770373860336,-234.110032,0.00030137,31]
[404642561,1770373860347,-234.110032,0.00030137,31]
[404642562,1770373860359,-234.110032,0.00030137,31]
[404642563,1770373860370,-234.110032,0.00030137,31]
[404642564,1770373860382,-234.110032,0.00030137,31]
[404642565,1770373860396,-234.110032,0.00030137,31]
[404642566,1770373860411,-234.110032,0.00030137,31]
[404642567,1770373860421,-234.110032,0.00030137,31]
[404642568,1770373860432,-234.110032,0.00030137,31]
[404642569,1770373860444,-234.110032,0.00030137,31]
[404642570,1770373860455,-234.110032,0.00030137,31]
[404642571,1770373860465,-234.110025,0.00030137,31]
[404642572,1770373860476,-2443.0,0.00030289,2]
[404642573,1770373860487,-2657.35375652,0.00030772,2]
[404642574,1770373860497,-5000.0,0.00030918,2]
[404642575,1770373860507,-29100.89815064,0.0003095,2]
[404642576,1770373860517,-343.21227435,0.00031,5]
[404642577,1770373860528,-51591.74142673,0.00031,2]
[404642578,1770373860539,-283.94181548,0.000314,30]
[404642579,1770373860551,-28308.51651852,0.000314,2]
[404642580,1770373860563,-19762.57571109,0.0003143,4]
[404642581,1770373860573,-197.44522566,0.000315,2]
[404642582,1770373860585,-150.0,0.000315,2]
[404642583,1770373860596,-1103.0,0.00031509,5]
[404642584,1770373860606,-2023.95754881,0.000316,2]
[404642585,1770373860618,-862.4,0.00032232,30]
[404642586,1770373860629,-894.60927211,0.000323,2]
[404642587,1770373860639,-2657.35375652,0.00032347,2]
[404642588,1770373860651,-2200.20573113,0.00032624,2]
[404642589,1770373860663,-4832.30248688,0.000328,2]
[404642590,1770373860674,-101268.9,0.000328,2]
[404642591,1770373860684,-1720.34861256,0.0003287,4]
[404642592,1770373860696,-190.4,0.00032877,2]
[404642593,1770373860706,-151.0,0.00032877,7]
[404642594,1770373860717,-151.0,0.00032877,7]
[404642595,1770373860727,-151.0,0.00032877,7]
[404642596,1770373860741,-151.0,0.00032877,31]
[404642597,1770373860751,-151.0,0.00032877,7]
[404642598,1770373860764,-151.0,0.00032877,31]
[404642599,1770373860775,-151.0,0.00032877,7]
[404642600,1770373860785,-151.0,0.00032877,31]
[404642601,1770373860795,-151.0,0.00032877,7]
[404642602,1770373860806,-151.0,0.00032877,31]
[404642603,1770373860817,-151.0,0.00032877,7]
[404642604,1770373860827,-151.0,0.00032877,7]
[404642605,1770373860838,-151.0,0.00032877,31]
[404642606,1770373860848,-151.0,0.00032877,7]
[404642607,1770373860860,-151.0,0.00032877,31]
[404642608,1770373860870,-151.0,0.00032877,7]
[404642609,1770373860881,-151.0,0.00032877,31]
[404642610,1770373860891,-151.0,0.00032877,7]
[404642611,1770373860902,-151.0,0.00032877,31]
[404642612,1770373860912,-216.354429,0.00032877,7]
[404642613,1770373860936,-151.0,0.00032877,31]
[404642614,1770373860947,-151.0,0.00032877,31]
[404642615,1770373860958,-151.0,0.00032877,31]
[404642616,1770373860969,-151.0,0.00032877,31]
[404642617,1770373860980,-151.0,0.00032877,31]
[404642618,1770373860991,-151.0,0.00032877,31]
[404642619,1770373861001,-151.0,0.00032877,31]
[404642620,1770373861012,-151.0,0.00032877,31]
[404642621,1770373861023,-151.0,0.00032877,31]
[404642622,1770373861034,-231.615997,0.00032877,31]
[404642623,1770373861046,-2585.57,0.000329,2]
[404642624,1770373861059,-292.93913761,0.000329,2]
[404642625,1770373861074,-101268.9,0.000329,14]
[404642626,1770373861086,-1603.42,0.00033,14]
[404642627,1770373861096,-558.942467,0.00033,14]
[404642628,1770373861108,-51326.37157396,0.00033,2]
[404642629,1770373861119,-26393.10915901,0.00033,2]
[404642630,1770373861131,-153.61494864,0.00033,2]
[404642631,1770373861141,-1751.21516827,0.00033013,2]
[404642632,1770373861152,-787.61001493,0.00033084,5]
[404642633,1770373861163,-839.0,0.00033442,11]
[404642634,1770373861174,-1211.95338967,0.000335,2]
[404642635,1770373861187,-400.86586692,0.00033621,5]
[404642636,1770373861198,-554.71,0.00033711,2]
[404642637,1770373861208,-554.71,0.00033711,2]
[404642638,1770373861221,-554.71,0.00033711,2]
[404642639,1770373861232,-554.71,0.00033711,2]
[404642640,1770373861243,-554.75039517,0.00033711,2]
[404642641,1770373861253,-493.7151392,0.00033711,30]
[404642642,1770373861264,-152.0,0.00033744,4]
[404642643,1770373861277,-2657.35375652,0.00033921,2]
[404642644,1770373861289,-2585.57,0.000342,2]